bitfinex-derivatives/quotes_BTCF0:USTF0_20250422
["timestamp","ask_amount","ask_price","bid_price","bid_amount"]
[1745286394623,0.1248,88508.0,88507.0,0.1694741]
[1745286394817,0.1248,88508.0,88501.0,0.24796951]
[1745286394818,0.1129895,88502.0,88501.0,0.00016951]
[1745286395325,0.1129895,88502.0,88501.0,0.11316031]
[1745286396023,0.3528895,88502.0,88501.0,0.11316031]
[1745286396213,0.3528895,88502.0,88501.0,0.11416031]
[1745286396922,0.3528895,88502.0,88501.0,0.11516031]
[1745286397722,0.3528895,88502.0,88501.0,0.11416031]
[1745286398223,0.3538895,88502.0,88501.0,0.00016951]
[1745286398922,0.3538895,88502.0,88501.0,0.11316031]
[1745286399113,0.5458895,88502.0,88501.0,0.11316031]
[1745286400517,0.5458895,88502.0,88501.0,0.00016951]
[1745286400718,0.54589201,88502.0,88471.0,0.056514]
[1745286401035,0.1695103,88490.0,88489.0,0.1130061]
[1745286401414,0.0565029,88490.0,88489.0,0.1130061]
[1745286401820,0.1130074,88488.0,88487.0,0.0565041]
[1745286402024,0.113015,88482.0,88481.0,0.23818581]
[1745286402224,0.113015,88482.0,88481.0,0.01095667]
[1745286403016,0.363215,88482.0,88481.0,0.01095667]
[1745286403216,0.555215,88482.0,88481.0,0.12397297]
[1745286403423,0.556215,88482.0,88481.0,0.12397297]
[1745286404127,0.364215,88482.0,88481.0,0.12397297]
[1745286404729,0.364215,88482.0,88471.0,0.3608]
[1745286404730,0.1130278,88472.0,88471.0,0.3608]
[1745286404919,0.0565185,88465.0,88461.0,0.1171]
[1745286405125,0.1130406,88462.0,88461.0,0.1130407]
[1745286405327,0.1130406,88462.0,88459.0,0.0565218]
[1745286405328,0.1130444,88459.0,88458.0,0.3608]
[1745286405522,0.1130444,88459.0,88458.0,0.4738457]
[1745286405823,0.1130444,88459.0,88458.0,0.3608]
[1745286406029,0.1130444,88459.0,88458.0,0.4738457]
[1745286406430,0.1130444,88459.0,88458.0,0.4758457]
[1745286406832,0.1130444,88459.0,88458.0,0.4864554]
[1745286407631,0.3022214,88461.0,88458.0,0.4864554]
[1745286407632,0.00016951,88467.0,88463.0,0.0565195]
[1745286407833,0.00016951,88467.0,88460.0,0.0565215]
[1745286407834,0.1130359,88466.0,88465.0,0.1130355]
[1745286408031,0.1130359,88466.0,88458.0,0.3764097]
[1745286408032,0.0565214,88461.0,88459.0,0.0565216]
[1745286408333,0.1130444,88459.0,88458.0,0.4894549]
[1745286408538,0.1130444,88459.0,88458.0,0.003]
[1745286408728,0.1130521,88453.0,88452.0,0.0565265]
[1745286409028,0.1695786,88453.0,88452.0,0.06715553]
[1745286409531,0.360956,88453.0,88430.0,0.3608]
[1745286409725,0.360956,88453.0,88437.0,0.1130725]
[1745286409726,0.1130725,88438.0,88437.0,0.1130725]
[1745286410126,0.5529725,88438.0,88437.0,0.1130725]
[1745286410326,0.5529725,88438.0,88436.0,0.1204]
[1745286410327,0.1130789,88432.0,88427.0,0.0565426]
[1745286410633,0.1130828,88429.0,88428.0,0.2900236]
[1745286410932,0.1130828,88429.0,88428.0,0.1769419]
[1745286412230,0.3060828,88429.0,88428.0,0.1789419]
[1745286412434,0.3060828,88429.0,88428.0,0.18755287]
[1745286412730,0.3060828,88429.0,88428.0,0.20131761]
[1745286413136,0.3060828,88429.0,88428.0,0.02437571]
[1745286414238,0.1140828,88429.0,88428.0,0.13745971]
[1745286414432,0.1140828,88429.0,88428.0,0.26395971]
[1745286414733,0.1130828,88429.0,88428.0,0.26195971]
[1745286414938,0.1140828,88429.0,88428.0,0.26295971]
[1745286415234,0.1140828,88429.0,88428.0,0.25995971]
[1745286415434,0.1140828,88429.0,88428.0,0.26295971]
[1745286416131,0.1150828,88429.0,88428.0,0.25995971]
[1745286416933,0.1140828,88429.0,88428.0,0.25995971]
[1745286417141,0.1150828,88429.0,88428.0,0.25995971]
[1745286417636,0.3639828,88429.0,88428.0,0.25995971]
[1745286418235,0.3639828,88429.0,88428.0,0.001]
[1745286418534,0.0565449,88424.0,88423.0,0.1130904]
[1745286419130,0.2485449,88424.0,88423.0,0.1130904]
[1745286419436,0.5015449,88424.0,88423.0,0.1130904]
[1745286420030,0.5015449,88424.0,88423.0,0.2318904]
[1745286420226,0.3095449,88424.0,88423.0,0.2318904]
[1745286420427,0.1224,88424.0,88423.0,0.2318904]
[1745286420630,0.001,88429.0,88428.0,0.113084]
[1745286421036,0.1130828,88429.0,88428.0,0.112084]
[1745286421440,0.1130828,88429.0,88428.0,0.237284]
[1745286421736,0.1131628,88429.0,88428.0,0.237284]
[1745286421934,0.1131628,88429.0,88428.0,0.356084]
[1745286421935,0.2328628,88429.0,88428.0,0.356084]
[1745286422132,0.2348628,88429.0,88428.0,0.357084]
[1745286422539,0.2348628,88429.0,88428.0,0.356084]
[1745286422838,0.2338628,88429.0,88428.0,0.3710553]
[1745286423039,0.2348628,88429.0,88428.0,0.3710553]
[1745286423643,0.2338628,88429.0,88428.0,0.3710553]
[1745286423938,0.2338628,88429.0,88428.0,0.356084]
[1745286424135,0.2328628,88429.0,88428.0,0.357084]
[1745286424345,0.3499628,88429.0,88428.0,0.231884]
[1745286425645,0.1141628,88429.0,88428.0,0.231884]
[1745286426140,0.2399628,88429.0,88428.0,0.231884]
[1745286426644,0.2399628,88429.0,88428.0,0.1198]
[1745286426833,0.3560628,88429.0,88428.0,0.114084]
[1745286427039,0.4660628,88429.0,88428.0,0.114084]
[1745286427338,0.3550628,88429.0,88428.0,0.113084]
[1745286427539,0.3560628,88429.0,88428.0,0.114084]
[1745286428336,0.3550628,88429.0,88428.0,0.114084]
[1745286428544,0.3559828,88429.0,88428.0,0.113084]
[1745286428745,0.3560628,88429.0,88428.0,0.113084]
[1745286430738,0.1130879,88425.0,88424.0,0.1254]
[1745286431049,0.1130879,88425.0,88424.0,0.2384892]
[1745286431240,0.1130879,88425.0,88422.0,0.06754972]
[1745286431241,0.1130904,88423.0,88422.0,0.01100412]
[1745286431439,0.056549,88418.0,88415.0,0.16981741]
[1745286431743,0.1130994,88416.0,88415.0,0.00016961]
[1745286432137,0.3950994,88416.0,88415.0,0.00016961]
[1745286432334,0.6365994,88416.0,88415.0,0.00016961]
[1745286432539,0.1131135,88405.0,88404.0,0.5245147]
[1745286432734,0.113116,88403.0,88402.0,0.1122]
[1745286432939,0.1131173,88402.0,88401.0,0.00169668]
[1745286433236,0.192,88402.0,88401.0,0.12333044]
[1745286433432,0.19208,88402.0,88401.0,0.37383044]
[1745286434153,8e-05,88402.0,88401.0,0.37383044]
[1745286434447,0.00108,88402.0,88401.0,0.12667775]
[1745286435249,0.1141973,88402.0,88401.0,0.37717775]
[1745286435439,0.1141973,88402.0,88401.0,0.50187775]
[1745286436950,0.001,88402.0,88401.0,0.37258107]
[1745286437150,0.00108,88402.0,88401.0,0.49858107]
[1745286437449,0.1131166,88403.0,88402.0,0.1131173]
[1745286437840,0.1131166,88403.0,88402.0,0.2391173]
[1745286438746,0.1215,88404.0,88403.0,0.113116]
[1745286438949,0.3608,88405.0,88404.0,0.1131147]
[1745286439245,0.4739135,88405.0,88404.0,0.1131147]
[1745286440943,0.113116,88403.0,88402.0,0.003]
[1745286441149,0.192,88403.0,88394.0,0.01104292]
[1745286441349,0.3608,88395.0,88385.0,0.114]
[1745286441538,0.1131339,88389.0,88386.0,0.1131371]
[1745286441739,0.0878,88390.0,88383.0,0.2240942]
[1745286441942,0.1131403,88384.0,88383.0,0.2240942]
[1745286442249,0.1131493,88377.0,88376.0,0.39326705]
[1745286443040,0.3526493,88377.0,88376.0,0.4043632]
[1745286443652,0.3526493,88377.0,88376.0,0.12424545]
[1745286443851,0.2395,88377.0,88376.0,0.12424545]
[1745286444043,0.3526493,88377.0,88376.0,0.12424545]
[1745286444241,0.3536493,88377.0,88376.0,0.12524545]
[1745286444451,0.3536493,88377.0,88376.0,0.12624545]
[1745286445850,0.2315493,88377.0,88376.0,0.12624545]
[1745286446149,0.2315493,88377.0,88376.0,0.13455443]
[1745286448053,0.001,88377.0,88376.0,0.13455443]
[1745286448244,0.001,88377.0,88376.0,0.45985443]
[1745286448450,0.00108,88377.0,88376.0,0.46985443]
[1745286449355,0.1142293,88377.0,88376.0,0.46985443]
[1745286449652,0.1142293,88377.0,88376.0,0.32655443]
[1745286449854,0.1142293,88377.0,88376.0,0.194]
[1745286450249,0.1142293,88377.0,88376.0,0.1258981]
[1745286450448,0.1142293,88377.0,88376.0,0.1151506]
[1745286452053,0.1142293,88377.0,88376.0,0.1259307]
[1745286452258,0.1142293,88377.0,88376.0,0.1151506]
[1745286453559,0.1141493,88377.0,88376.0,0.1151506]
[1745286453757,0.1142293,88377.0,88376.0,0.1151506]
[1745286453956,0.1142293,88377.0,88376.0,0.002]
[1745286454254,0.1131608,88368.0,88367.0,0.227161]
[1745286454449,0.4739608,88368.0,88367.0,0.114]
[1745286454656,0.1131698,88363.0,88362.0,0.01075619]
[1745286454849,0.1697539,88363.0,88362.0,0.1131672]
[1745286455049,0.4052539,88363.0,88362.0,0.1131672]
[1745286455261,0.4052539,88363.0,88362.0,0.2322672]
[1745286455459,0.4052539,88363.0,88362.0,0.1131672]
[1745286455652,0.4052539,88363.0,88362.0,0.12420919]
[1745286456554,0.4062539,88363.0,88362.0,0.24330919]
[1745286457160,0.4072539,88363.0,88362.0,0.12420919]
[1745286458158,0.002,88363.0,88362.0,0.12420919]
[1745286458360,0.1151672,88363.0,88362.0,0.12420919]
[1745286458553,0.1151672,88363.0,88362.0,0.24810919]
[1745286458753,0.1152472,88363.0,88362.0,0.24810919]
[1745286459157,0.1152472,88363.0,88362.0,0.44010919]
[1745286459357,0.00208,88363.0,88362.0,0.44010919]
[1745286459549,0.002,88363.0,88362.0,0.44010919]
[1745286459749,0.00208,88363.0,88362.0,0.44010919]
[1745286460760,0.1152472,88363.0,88362.0,0.44010919]
[1745286460959,0.1152472,88363.0,88362.0,0.46010919]
[1745286461162,0.00208,88363.0,88362.0,0.46010919]
[1745286461359,0.00108,88363.0,88362.0,0.46010919]
[1745286461561,0.002,88363.0,88362.0,0.46010919]
[1745286461757,0.00108,88363.0,88362.0,0.46010919]
[1745286462058,0.00208,88363.0,88362.0,0.46010919]
[1745286462265,0.00308,88363.0,88362.0,0.46010919]
[1745286462765,0.00308,88363.0,88362.0,0.44010919]
[1745286463456,0.003,88363.0,88362.0,0.44010919]
[1745286463651,0.00108,88363.0,88362.0,0.44010919]
[1745286464450,8e-05,88363.0,88362.0,0.44010919]
[1745286464653,0.00010801,88373.0,88371.0,0.113157]
[1745286464654,0.1131567,88372.0,88371.0,0.113157]
[1745286464850,0.00010801,88373.0,88372.0,0.1131557]
[1745286465051,0.00010801,88373.0,88372.0,0.1121557]
[1745286465256,0.11326241,88373.0,88372.0,0.1121557]
[1745286465459,0.1131544,88373.0,88372.0,0.3445557]
[1745286465655,0.1132344,88373.0,88372.0,0.3445557]
[1745286466059,0.1132344,88373.0,88372.0,0.5365557]
[1745286466653,8e-05,88373.0,88372.0,0.5355557]
[1745286466863,8e-05,88373.0,88372.0,0.56057018]
[1745286467061,0.001,88373.0,88372.0,0.56057018]
[1745286467262,0.00208,88373.0,88372.0,0.56257018]
[1745286467451,0.002,88373.0,88372.0,0.56257018]
[1745286467657,0.00208,88373.0,88372.0,0.5475557]
[1745286468362,0.00010801,88383.0,88382.0,0.1121429]
[1745286469359,0.00010801,88383.0,88382.0,0.3450429]
[1745286469868,0.11324961,88383.0,88382.0,0.3440429]
[1745286470053,0.11424961,88383.0,88382.0,0.3440429]
[1745286470563,0.11690801,88383.0,88382.0,0.3470429]
[1745286471660,0.1168,88383.0,88382.0,0.3470429]
[1745286471861,0.2299416,88383.0,88382.0,0.3470429]
[1745286472062,0.2299416,88383.0,88382.0,0.4218429]
[1745286472263,0.2300216,88383.0,88382.0,0.4218429]
[1745286472565,0.2300216,88383.0,88382.0,0.195]
[1745286472767,0.3510216,88383.0,88382.0,0.195]
[1745286473163,0.3510216,88383.0,88382.0,0.003]
[1745286474269,0.3460216,88383.0,88382.0,0.003]
[1745286475573,0.3410216,88383.0,88382.0,0.1161429]
[1745286475973,0.2200216,88383.0,88382.0,0.1161429]
[1745286476858,0.2150216,88383.0,88382.0,0.1161429]
[1745286478264,0.2100216,88383.0,88382.0,0.1161429]
[1745286479467,0.2099416,88383.0,88382.0,0.1161429]
[1745286479671,0.2100216,88383.0,88382.0,0.2419429]
[1745286479968,0.2050216,88383.0,88382.0,0.2419429]
[1745286480169,0.09188,88383.0,88382.0,0.2419429]
[1745286480570,0.2049416,88383.0,88382.0,0.2419429]
[1745286480770,0.2050216,88383.0,88382.0,0.2419429]
[1745286481171,0.2000216,88383.0,88382.0,0.2419429]
[1745286481566,0.2000216,88383.0,88382.0,0.2429429]
[1745286481775,0.2000216,88383.0,88382.0,0.1171429]
[1745286482373,0.08688,88383.0,88382.0,0.1171429]
[1745286482575,0.0818,88383.0,88382.0,0.1171429]
[1745286482873,0.1939416,88383.0,88382.0,0.1171429]
[1745286483171,0.1939416,88383.0,88382.0,0.3565429]
[1745286483364,0.1940216,88383.0,88382.0,0.3565429]
[1745286483772,0.1890216,88383.0,88382.0,0.3575429]
[1745286485071,0.1840216,88383.0,88382.0,0.3575429]
[1745286486271,0.1790216,88383.0,88382.0,0.3575429]
[1745286487670,0.1740216,88383.0,88382.0,0.3575429]
[1745286489769,0.1740216,88383.0,88382.0,0.37293117]
[1745286489978,0.06088,88383.0,88382.0,0.37293117]
[1745286490371,0.1740216,88383.0,88382.0,0.37293117]
[1745286491371,0.1740216,88383.0,88382.0,0.25340509]
[1745286491574,0.1740216,88383.0,88382.0,0.2380429]
[1745286492382,0.1740216,88383.0,88382.0,0.1181429]
[1745286495080,0.0565743,88378.0,88360.0,0.11263506]
[1745286495281,0.1131544,88373.0,88372.0,0.24656083]
[1745286495669,0.2318544,88373.0,88372.0,0.35856083]
[1745286495875,0.2318544,88373.0,88372.0,0.24540513]
[1745286496380,0.1131672,88363.0,88362.0,0.18079309]
[1745286496679,0.1131685,88362.0,88361.0,0.1131691]
[1745286496881,0.2318685,88362.0,88361.0,0.1131691]
[1745286497578,0.2318685,88362.0,88361.0,0.12641749]
[1745286497779,0.2318685,88362.0,88361.0,0.23881749]
[1745286497982,0.2328685,88362.0,88361.0,0.24081749]
[1745286498481,0.001,88362.0,88361.0,0.24081749]
[1745286498785,0.001,88362.0,88361.0,0.36061749]
[1745286498980,0.00208,88362.0,88361.0,0.36061749]
[1745286499176,0.00208,88362.0,88361.0,0.55261749]
[1745286499375,0.00010801,88369.0,88368.0,0.1131608]
[1745286499572,0.0565756,88376.0,88375.0,0.0565741]
[1745286499977,0.1697312,88376.0,88375.0,0.0565741]
[1745286500177,0.1697312,88376.0,88375.0,0.2485741]
[1745286500375,0.0565756,88376.0,88375.0,0.2485741]
[1745286500781,0.0565756,88376.0,88375.0,0.4783741]
[1745286500983,0.0565756,88376.0,88375.0,0.4773741]
[1745286501183,0.0566556,88376.0,88375.0,0.4773741]
[1745286501491,0.0576556,88376.0,88375.0,0.4783741]
[1745286501887,0.0606556,88376.0,88375.0,0.4783741]
[1745286502076,0.0606556,88376.0,88375.0,0.4793741]
[1745286502275,0.0606556,88376.0,88375.0,0.3630741]
[1745286502788,0.0586556,88376.0,88375.0,0.3630741]
[1745286503191,0.0586556,88376.0,88375.0,0.1710741]
[1745286503489,0.0576556,88376.0,88375.0,0.1720741]
[1745286503681,0.0586556,88376.0,88375.0,0.18706746]
[1745286503881,0.0586556,88376.0,88375.0,0.13149336]
[1745286504083,0.0586556,88376.0,88375.0,0.003]
[1745286504290,0.1131672,88363.0,88362.0,0.2247]
[1745286504583,0.1131672,88363.0,88362.0,0.2295685]
[1745286504790,0.1131672,88363.0,88362.0,0.1131685]
[1745286504984,0.1131685,88362.0,88361.0,0.53781819]
[1745286505191,0.3651685,88362.0,88361.0,0.4114]
[1745286505381,0.1131877,88347.0,88343.0,0.1082]
[1745286505580,0.1129277,88347.0,88346.0,0.11828258]
[1745286506101,0.1130077,88347.0,88346.0,0.32381184]
[1745286506288,8e-05,88347.0,88346.0,0.40751741]
[1745286506477,0.00016971,88355.0,88354.0,0.1131788]
[1745286506681,0.00016971,88355.0,88354.0,0.12835289]
[1745286506879,0.11334721,88355.0,88354.0,0.01517409]
[1745286507092,0.11334721,88355.0,88354.0,0.2330788]
[1745286507585,0.11334721,88355.0,88354.0,0.1131788]
[1745286507785,0.1131864,88349.0,88348.0,0.1697776]
[1745286508177,0.1131864,88349.0,88348.0,0.3617776]
[1745286508384,0.1131864,88349.0,88348.0,0.4183706]
[1745286508785,0.1158,88350.0,88349.0,0.1131852]
[1745286508993,0.00016971,88355.0,88352.0,0.0565906]
[1745286509296,0.11334761,88355.0,88354.0,0.1131788]
[1745286509497,0.11334761,88355.0,88354.0,0.2277788]
[1745286510094,0.11334761,88355.0,88354.0,0.4197788]
[1745286510296,0.00016971,88355.0,88354.0,0.4197788]
[1745286510497,0.00016971,88355.0,88354.0,0.5481564]
[1745286510688,0.00016971,88355.0,88354.0,0.9289564]
[1745286510885,0.1131486,88378.0,88373.0,0.1131544]
[1745286511189,0.11487927,88376.0,88375.0,0.1121519]
[1745286511797,0.11495927,88376.0,88375.0,0.1121519]
[1745286511988,0.11487927,88376.0,88375.0,0.3298519]
[1745286512193,0.11495927,88376.0,88375.0,0.5208519]
[1745286512393,0.22810987,88376.0,88375.0,0.5208519]
[1745286512996,0.1132306,88376.0,88375.0,0.5208519]
[1745286513492,0.1132306,88376.0,88375.0,0.5218519]
[1745286513493,0.1142306,88376.0,88375.0,0.5218519]
[1745286513699,0.1152306,88376.0,88375.0,0.5218519]
[1745286513994,0.1142306,88376.0,88375.0,0.5208519]
[1745286514199,0.1152306,88376.0,88375.0,0.5218519]
[1745286514397,0.1142306,88376.0,88375.0,0.5228519]
[1745286515085,0.1132306,88376.0,88375.0,0.5218519]
[1745286515289,0.1142306,88376.0,88375.0,0.5218519]
[1745286515996,0.00108,88376.0,88375.0,0.5218519]
[1745286516594,8e-05,88376.0,88375.0,0.5228519]
[1745286516787,0.00108,88376.0,88375.0,0.5238519]
[1745286517195,8e-05,88376.0,88375.0,0.5228519]
[1745286517390,0.00027772,88384.0,88383.0,0.1131416]
[1745286517590,0.00016971,88384.0,88383.0,0.1331416]
[1745286517791,0.00016971,88384.0,88383.0,0.1609501]
[1745286518296,0.00016971,88384.0,88383.0,0.5695501]
[1745286518592,0.00016971,88384.0,88383.0,0.5685501]
[1745286518896,0.00016971,88384.0,88383.0,0.55352422]
[1745286520100,0.00116971,88384.0,88383.0,0.55752422]
[1745286520700,0.1088,88392.0,88391.0,0.1121314]
[1745286520998,0.56283927,88403.0,88402.0,0.1131173]
[1745286521190,0.47567927,88403.0,88402.0,0.1131173]
[1745286521390,0.47575927,88403.0,88402.0,0.1131173]
[1745286521602,0.47567927,88403.0,88402.0,0.1131173]
[1745286521792,0.47575927,88403.0,88402.0,0.1131173]
[1745286522098,8e-05,88403.0,88402.0,0.3051173]
[1745286522299,0.11608,88403.0,88402.0,0.3051173]
[1745286522495,0.22628,88403.0,88402.0,0.3051173]
[1745286522697,0.339396,88403.0,88402.0,0.3051173]
[1745286522997,8e-05,88403.0,88402.0,0.3071173]
[1745286523196,0.00108,88403.0,88402.0,0.5323173]
[1745286523600,0.08712,88422.0,88404.0,0.0565573]
[1745286523792,0.00010801,88412.0,88410.0,0.1131071]
[1745286524097,0.2231,88421.0,88410.0,0.3251071]
[1745286524404,0.00010801,88420.0,88419.0,0.1130956]
[1745286524795,0.00010801,88420.0,88419.0,0.1330956]
[1745286524995,0.3608,88424.0,88422.0,0.1130917]
[1745286525298,0.3608,88424.0,88422.0,0.1330917]
[1745286526003,0.2172,88429.0,88422.0,0.1330917]
[1745286526395,0.1071,88429.0,88428.0,0.113084]
[1745286526699,0.10718,88429.0,88428.0,0.113084]
[1745286527095,0.10718,88429.0,88428.0,0.355084]
[1745286527594,8e-05,88429.0,88428.0,0.355084]
[1745286527995,8e-05,88429.0,88428.0,0.356084]
[1745286528307,0.08722801,88440.0,88439.0,0.11307]
[1745286528505,0.08712,88440.0,88439.0,0.11307]
[1745286528701,0.1130667,88442.0,88441.0,0.1130674]
[1745286529798,0.114,88443.0,88433.0,0.00016961]
[1745286529799,0.1130764,88434.0,88433.0,0.00016961]
[1745286530103,0.33712,88434.0,88400.0,0.16051683]
[1745286530298,0.1131135,88405.0,88404.0,0.0565569]
[1745286530700,0.1131135,88405.0,88404.0,0.06513787]
[1745286531204,0.108,88414.0,88404.0,0.06513787]
[1745286531205,0.00016961,88413.0,88404.0,0.38315667]
[1745286531416,0.11327361,88413.0,88412.0,0.1131045]
[1745286532109,0.11327361,88413.0,88412.0,0.3051045]
[1745286533713,0.11327361,88413.0,88412.0,0.3061045]
[1745286533914,0.11327361,88413.0,88412.0,0.3071045]
[1745286534102,0.11327361,88413.0,88412.0,0.1151045]
[1745286534306,0.11327361,88413.0,88412.0,0.002]
[1745286534506,0.11327361,88413.0,88412.0,0.1151045]
[1745286538316,0.00016961,88413.0,88412.0,0.1151045]
[1745286539200,0.00016961,88413.0,88412.0,0.3071045]
[1745286539401,0.46623394,88436.0,88418.0,0.0565482]
[1745286539607,0.00019684,88436.0,88435.0,0.1130751]
[1745286539810,0.00039368,88436.0,88435.0,0.1130751]
[1745286540006,0.1130733,88437.0,88436.0,0.1130738]
[1745286540411,0.3608,88444.0,88442.0,0.1110661]
[1745286540606,0.25666399,88443.0,88442.0,0.1110661]
[1745286540909,0.1130674,88441.0,88440.0,0.1130684]
[1745286541710,0.1130674,88441.0,88440.0,0.2238684]
[1745286542302,0.057613,88443.0,88442.0,0.1130661]
[1745286542510,0.057533,88443.0,88442.0,0.1130661]
[1745286542815,0.057613,88443.0,88442.0,0.1130661]
[1745286543013,0.056613,88443.0,88442.0,0.1130661]
[1745286543206,0.056613,88443.0,88442.0,0.3050661]
[1745286543402,0.056613,88443.0,88442.0,0.3040661]
[1745286544110,0.057613,88443.0,88442.0,0.1120661]
[1745286544704,0.057613,88443.0,88442.0,0.1251496]
[1745286545709,0.057613,88443.0,88442.0,0.1120661]
[1745286546015,0.1130802,88431.0,88430.0,0.192]
[1745286546316,0.1130802,88431.0,88402.0,0.4114]
[1745286546317,0.1131135,88405.0,88402.0,0.4679586]
[1745286546510,0.1131186,88401.0,88400.0,0.22662495]
[1745286546708,0.4739186,88401.0,88400.0,0.22662495]
[1745286547013,0.6139186,88401.0,88400.0,0.22662495]
[1745286547216,1.1690386,88401.0,88400.0,0.21312039]
[1745286547714,1.1690386,88401.0,88400.0,0.32624029]
[1745286547914,0.9190386,88401.0,88400.0,0.32724029]
[1745286548213,0.6659186,88401.0,88400.0,0.32724029]
[1745286548608,0.6659986,88401.0,88400.0,0.32724029]
[1745286549105,0.4749986,88401.0,88400.0,0.33124029]
[1745286549312,0.4769986,88401.0,88400.0,0.33024029]
[1745286549713,0.5782986,88401.0,88400.0,0.32624029]
[1745286550013,0.5772986,88401.0,88400.0,0.32724029]
[1745286550415,0.5772986,88401.0,88400.0,0.1141199]
[1745286552119,0.5772186,88401.0,88400.0,0.4182199]
[1745286552415,0.5762986,88401.0,88400.0,0.4182199]
[1745286553312,0.46318,88401.0,88400.0,0.4182199]
[1745286553510,0.36088,88401.0,88400.0,0.4192199]
[1745286553916,0.4739986,88401.0,88400.0,0.4202199]
[1745286554321,0.36088,88401.0,88400.0,0.4202199]
[1745286554710,8e-05,88401.0,88400.0,0.4202199]
[1745286554916,0.1031,88406.0,88405.0,0.1131135]
[1745286555221,0.2162122,88406.0,88405.0,0.1131135]
[1745286555416,0.00016961,88409.0,88408.0,0.1131096]
[1745286555818,0.1131186,88401.0,88374.0,0.3608]
[1745286556023,0.4739186,88401.0,88391.0,0.0565653]
[1745286556221,0.6659186,88401.0,88400.0,0.001]
[1745286556621,0.6559,88401.0,88400.0,0.1131199]
[1745286556819,0.7690186,88401.0,88400.0,0.1131199]
[1745286557221,0.5770986,88401.0,88400.0,0.1131199]
[1745286557415,0.1131224,88399.0,88398.0,0.1131218]
[1745286557622,0.113125,88397.0,88396.0,0.113125]
[1745286557821,0.113125,88396.0,88395.0,0.0565631]
[1745286558126,0.1131288,88393.0,88392.0,0.11329831]
[1745286558527,0.3272254,88396.0,88395.0,0.1131263]
[1745286558729,8e-05,88401.0,88400.0,0.1131199]
[1745286559026,0.0565575,88404.0,88403.0,0.1131147]
[1745286559329,0.1095,88408.0,88407.0,0.1131109]
[1745286559824,8e-05,88408.0,88407.0,0.1131109]
[1745286560321,8e-05,88408.0,88407.0,0.3051109]
[1745286560526,0.00016961,88409.0,88408.0,0.1131096]
[1745286560928,0.00016961,88409.0,88408.0,0.3176096]
[1745286561122,0.00016961,88409.0,88408.0,0.5096096]
[1745286562632,0.00024961,88409.0,88408.0,0.5116096]
[1745286563325,0.00024961,88409.0,88408.0,0.5136096]
[1745286563527,0.00016961,88409.0,88408.0,0.8744096]
[1745286563730,0.00024961,88409.0,88408.0,0.8744096]
[1745286564625,0.00024961,88409.0,88408.0,0.8754096]
[1745286565633,0.00024961,88409.0,88408.0,0.8854096]
[1745286565933,0.00024961,88409.0,88408.0,0.5246096]
[1745286566133,0.00010801,88419.0,88418.0,0.1130968]
[1745286567135,0.1130882,88425.0,88424.0,0.1130892]
[1745286567329,0.1434226,88427.0,88426.0,0.1130866]
[1745286567330,0.00027762,88427.0,88426.0,0.1130866]
[1745286567631,0.00024961,88427.0,88426.0,0.1130866]
[1745286568137,0.00024961,88427.0,88426.0,0.4159866]
[1745286569132,0.00016961,88427.0,88426.0,0.4159866]
[1745286569330,0.00024961,88427.0,88426.0,0.4159866]
[1745286572236,0.00024961,88427.0,88426.0,0.4179866]
[1745286572732,0.00024961,88427.0,88426.0,0.4169866]
[1745286573036,0.00024961,88427.0,88426.0,0.4179866]
[1745286573428,0.1130676,88441.0,88429.0,0.0565413]
[1745286573429,0.1034,88441.0,88429.0,0.0565413]
[1745286573629,0.1034,88441.0,88440.0,0.1130687]
[1745286574431,0.1034,88441.0,88440.0,0.3210687]
[1745286574632,0.10348,88441.0,88440.0,0.3210687]
[1745286575136,0.08688,88448.0,88447.0,0.1130597]
[1745286575335,0.36107762,88449.0,88448.0,0.1120585]
[1745286575634,0.36107762,88449.0,88448.0,0.2162585]
[1745286576131,0.36107762,88449.0,88448.0,0.4082585]
[1745286577128,0.36107762,88449.0,88448.0,0.4072585]
[1745286577434,0.46277762,88449.0,88448.0,0.4072585]
[1745286577839,0.46377762,88449.0,88448.0,0.4072585]
[1745286578032,0.46377762,88449.0,88448.0,0.4159162]
[1745286578435,0.57683482,88449.0,88448.0,0.19150078]
[1745286578638,0.68193482,88449.0,88448.0,0.19150078]
[1745286578942,0.68193482,88449.0,88448.0,0.30455928]
[1745286579142,0.87393482,88449.0,88448.0,0.1130585]
[1745286580141,0.68193482,88449.0,88448.0,0.1130585]
[1745286581045,0.1130597,88447.0,88446.0,0.0565299]
[1745286581645,0.2152597,88447.0,88446.0,0.0565299]
[1745286582537,0.2162597,88447.0,88446.0,0.0565299]
[1745286583345,0.2172597,88447.0,88446.0,0.0565299]
[1745286588045,0.113061,88446.0,88445.0,0.0085879]
[1745286588247,0.1130687,88440.0,88430.0,0.0565403]
[1745286588441,0.4738687,88440.0,88439.0,0.11323961]
[1745286588649,0.4738687,88440.0,88439.0,0.12632697]
[1745286589340,0.5808687,88440.0,88439.0,0.12632697]
[1745286589940,0.5808687,88440.0,88439.0,0.12732697]
[1745286593044,0.5808687,88440.0,88439.0,0.13568174]
[1745286596337,0.4678,88440.0,88439.0,0.13568174]
[1745286596537,0.4678,88440.0,88439.0,0.34538174]
[1745286596742,0.46788,88440.0,88439.0,0.34538174]
[1745286597139,0.46788,88440.0,88439.0,0.53738174]
[1745286597844,0.10708,88440.0,88439.0,0.53738174]
[1745286598242,0.10708,88440.0,88439.0,0.34538174]
[1745286599445,8e-05,88440.0,88439.0,0.34538174]
[1745286599952,0.10386961,88449.0,88448.0,0.1130585]
[1745286600243,0.21692681,88449.0,88448.0,0.1130585]
[1745286600451,0.10386961,88449.0,88448.0,0.1130585]
[1745286600851,0.21692681,88449.0,88448.0,0.1130585]
[1745286601042,0.32102681,88449.0,88448.0,0.1130585]
[1745286602947,0.1130687,88442.0,88441.0,0.0565331]
[1745286603154,0.1130687,88440.0,88439.0,0.00016961]
[1745286603445,0.5605087,88440.0,88439.0,0.00016961]
[1745286603654,0.7735807,88440.0,88439.0,0.00016961]
[1745286603848,0.9859807,88440.0,88439.0,0.00016961]
[1745286604350,1.1779807,88440.0,88439.0,0.00016961]
[1745286604847,1.1789807,88440.0,88439.0,0.00016961]
[1745286605548,1.4289807,88440.0,88439.0,0.00016961]
[1745286605851,1.4289807,88440.0,88439.0,1e-08]
[1745286606244,1.8384807,88440.0,88439.0,1e-08]
[1745286606554,0.1130994,88416.0,88415.0,0.16906255]
[1745286606746,0.4738994,88416.0,88415.0,0.16906255]
[1745286607442,0.6780994,88416.0,88415.0,0.16906255]
[1745286607950,0.6780994,88416.0,88415.0,0.17771217]
[1745286609149,0.1429879,88419.0,88415.0,0.29081287]
[1745286609448,0.1130981,88417.0,88416.0,0.2124]
[1745286610244,0.3325981,88417.0,88416.0,0.1065]
[1745286610650,0.3325981,88417.0,88416.0,0.1085]
[1745286610850,0.3325981,88417.0,88416.0,0.002]